Workbook

Sheet 汇总
A1: 花都区2022年度种粮大户补贴发放情况明细表
A3: 序号 | B3: 镇（街） | C3: 行政村、队（组） | D3: 大户姓名 | E3: 核定种植面积（亩） | H3: 村级补贴 | I3: 资金合计
E4: 早造 | F4: 晚造 | G4: 全年
A5: 1 | B5: 花山镇 | C5: 平西村18、19 20、21队 | D5: 许春淡 | E5: 281.1 | G5: =E5+F5 -> 281.1 | H5: 1000 | I5: =G5*400 -> 112440
A6: 2 | B6: 花山镇 | C6: 平西村22、23、24队 | D6: 周英飞 | E6: 94.3 | G6: =E6+F6 -> 94.3 | I6: =G6*400 -> 37720
A7: 3 | B7: 花山镇 | C7: 平西村22、23、24队 | D7: 吴祥怀 | E7: 98 | G7: 98 | I7: 39200
A8: 4 | B8: 花山镇 | C8: 东方7队 | D8: 陈泽江 | E8: 60.2 | F8: 36.2 | G8: 96.4 | H8: 1000 | I8: 38560
A9: 5 | B9: 花山镇 | C9: 永明村 | D9: 彭志超 | E9: 177.4 | G9: 177.4 | H9: 1000 | I9: 70960
A10: 6 | B10: 花山镇 | C10: 永明村 | D10: 余祖文 | E10: 83.4 | G10: 83.4 | I10: 33360
A11: 7 | B11: 花山镇 | C11: 永明村 | D11: 甯盛良 | E11: 49.8 | F11: 29.8 | G11: 79.6 | I11: 31840
A12: 8 | B12: 花山镇 | C12: 五星村 | D12: 彭志超 | E12: 18 | F12: 25.7 | G12: 43.7 | H12: 1000 | I12: 17480
A13: 9 | B13: 花山镇 | C13: 五星村 | D13: 杨延礼 | E13: 64.8 | G13: 64.8 | I13: 25920
A14: 10 | B14: 花山镇 | C14: 儒林13队 | D14: 肖世槐 | E14: 64.9 | G14: 64.9 | H14: 1000 | I14: 25960
A15: 11 | B15: 花山镇 | C15: 儒林3队 | D15: 陈新妹 | E15: 53 | G15: 53 | I15: 21200
A16: 12 | B16: 花山镇 | C16: 永乐村 | D16: 林 奋 | E16: 17.3 | F16: 17.3 | G16: 34.6 | H16: 1000 | I16: 13840
A17: 13 | B17: 花山镇 | C17: 永乐村 | D17: 陆启燊 | E17: 123 | G17: 123 | I17: 49200
A18: 14 | B18: 花山镇 | C18: 布岗村 | D18: 张祖康 | E18: 39.5 | G18: 39.5 | H18: 1000 | I18: 15800
A19: 15 | B19: 花山镇 | C19: 布岗村 | D19: 杨光奇 | E19: 20 | G19: 20 | I19: 8000
A20: 16 | B20: 花山镇 | C20: 铁山村 | D20: 彭志超 | E20: 15.9 | G20: 15.9 | H20: 1000 | I20: 6360
A21: 17 | B21: 花山镇 | C21: 狮民村 | D21: 朱国维 | E21: 21.4 | G21: 21.4 | H21: 1000 | I21: 8560
A22: 19 | B22: 花山镇 | C22: 狮民村 | D22: 刘兴寿 | F22: 21.8 | G22: =E22+F22 -> 21.8 | I22: =G22*400 -> 8720
A23: 18 | B23: 花山镇 | C23: 狮民村 | D23: 陈云慧 | F23: 15.4 | G23: =E23+F23 -> 15.4 | H23: 1000 | I23: =G23*400 -> 6160
A24: 20 | B24: 炭步镇 | C24: 唐美村 | D24: 庾庆鹏 | E24: 18.5 | F24: 25 | G24: 43.5 | H24: 1000 | I24: 17400
A25: 21 | B25: 炭步镇 | C25: 华岭村 | D25: 黄钜鹏 | E25: 114 | F25: 217.7 | G25: 331.7 | H25: 1000 | I25: 132680
A26: 22 | B26: 梯面镇 | C26: 民安村 | D26: 彭志超 | E26: 35.9 | G26: 35.9 | H26: 1000 | I26: 14360
A27: 23 | B27: 梯面镇 | C27: 西坑村 | D27: 广州花都区莲塘生机水稻专业合作社 | E27: 158.5 | G27: 158.5 | H27: 1000 | I27: 63400
A28: 24 | B28: 梯面镇 | C28: 西坑村 | D28: 广州市梯面旅游发展有限公司 | F28: 160.7 | G28: 160.7 | I28: 64280
A29: 25 | B29: 梯面镇 | C29: 红山村 | D29: 广州市茅輋旅游文化发展有限公司 | E29: 59.5 | F29: 59.5 | G29: 119 | H29: 1000 | I29: 47600
A30: 26 | B30: 梯面镇 | C30: 红山村 | D30: 广州市金秋水稻专业合作社 | E30: 54.5 | F30: 53.5 | G30: 108 | I30: 43200
A31: 27 | B31: 梯面镇 | C31: 联丰村 | D31: 广州市金秋水稻专业合作社 | E31: 94.3 | G31: 94.3 | H31: 1000 | I31: 37720
A32: 28 | B32: 梯面镇 | C32: 联丰村 | D32: 广州市梯面旅游发展有限公司 | F32: 85.1 | G32: 85.1 | I32: 34040
A33: 29 | B33: 花东镇 | C33: 大东村 | D33: 黄仲楷 | E33: 218.4 | F33: 140.8 | G33: 359.2 | H33: 1000 | I33: 143680
A34: 30 | B34: 花东镇 | C34: 大东村 | D34: 吕美绿 | E34: 124.9 | G34: 124.9 | I34: 49960
A35: 31 | B35: 花东镇 | C35: 大东村 | D35: 黄仲亮 | E35: 46.3 | G35: 46.3 | I35: 18520
A36: 32 | B36: 花东镇 | C36: 大龙村 | D36: 傅鉴才 | E36: 23.1 | G36: 23.1 | H36: 1000 | I36: 9240
A37: 33 | B37: 花东镇 | C37: 珠湖村 | D37: 马俊峰 | E37: 65.7 | F37: 49.8 | G37: 115.5 | H37: 1000 | I37: 46200
A38: 34 | B38: 花东镇 | C38: 珠湖村 | D38: 张启平 | E38: 127.9 | G38: =E38+F38 -> 127.9 | I38: =G38*400 -> 51160
A39: 35 | B39: 花东镇 | C39: 狮前村 | D39: 广州市七溪地芳香集团有限公司 | E39: 20 | G39: 20 | H39: 1000 | I39: 8000
A40: 36 | B40: 花东镇 | C40: 狮前村 | D40: 张健强 | E40: 48 | F40: 48 | G40: 96 | I40: 38400
A41: 37 | B41: 花东镇 | C41: 莘田村 | D41: 陈绍源 | E41: 107.2 | F41: 100.9 | G41: 208.1 | H41: 1000 | I41: 83240
A42: 38 | B42: 花东镇 | C42: 联安村 | D42: 马文基 | E42: 88.9 | F42: 26 | G42: 114.9 | H42: 1000 | I42: 45960
A43: 39 | B43: 花东镇 | C43: 七星村 | D43: 田兴运 | E43: 62.4 | F43: 20.6 | G43: 83 | H43: 1000 | I43: 33200
A44: 40 | B44: 花东镇 | C44: 港头村 | D44: 曾庆球 | E44: 170 | F44: 15.1 | G44: 185.1 | H44: 1000 | I44: 74040
A45: 41 | B45: 花东镇 | C45: 阳升村 | D45: 邓孝志 | E45: 174 | G45: 174 | H45: 1000 | I45: 69600
A46: 42 | B46: 花东镇 | C46: 元岗村 | D46: 徐建军 | E46: 120 | F46: 20.2 | G46: 140.2 | H46: 1000 | I46: 56080
A47: 43 | B47: 花东镇 | C47: 杨一村 | D47: 石超雄 | E47: 18.6 | G47: 18.6 | H47: 1000 | I47: 7440
A48: 48 | B48: 花东镇 | C48: 杨一村 | D48: 刘 华 | F48: 26.6 | G48: =E48+F48 -> 26.6 | I48: =G48*400 -> 10640
A49: 44 | B49: 花东镇 | C49: 水口营村 | D49: 黄永荣 | F49: 64.4 | G49: =E49+F49 -> 64.4 | H49: 1000 | I49: =G49*400 -> 25760
A50: 45 | B50: 花东镇 | C50: 水口营村 | D50: 商永贞 | F50: 17 | G50: =E50+F50 -> 17 | I50: =G50*400 -> 6800
A51: 46 | B51: 花东镇 | C51: 象山村 | D51: 吴明松 | F51: 24 | G51: =E51+F51 -> 24 | H51: 1000 | I51: =G51*400 -> 9600
A52: 47 | B52: 花东镇 | C52: 利农村 | D52: 吴明松 | F52: 31.3 | G52: =E52+F52 -> 31.3 | H52: 1000 | I52: =G52*400 -> 12520
A53: 49 | B53: 赤坭镇 | C53: 黄沙塘村 | D53: 陈沛明 | E53: 285.4 | F53: 285.4 | G53: 570.8 | H53: 1000 | I53: 228320
A54: 50 | B54: 赤坭镇 | C54: 黄沙塘村 | D54: 卢振华 | E54: 106.6 | F54: 91.6 | G54: 198.2 | I54: 79280
A55: 51 | B55: 赤坭镇 | C55: 蓝田村 | D55: 李其道 | E55: 80.7 | G55: 80.7 | H55: 1000 | I55: 32280
A56: 52 | B56: 赤坭镇 | C56: 下连珠村 | D56: 广州花都区莲塘生机水稻专业合作社 | E56: 88.6 | F56: 84.9 | G56: 173.5 | H56: 1000 | I56: 69400
A57: 53 | B57: 赤坭镇 | C57: 莲塘村 | D57: 徐文源 | E57: 202.1 | F57: 165.6 | G57: 367.7 | H57: 1000 | I57: 147080
A58: 54 | B58: 赤坭镇 | C58: 莲塘村 | D58: 黄雁芬 | E58: 205.4 | F58: 177.2 | G58: 382.6 | I58: 153040
A59: 55 | B59: 赤坭镇 | C59: 荷塘村 | D59: 徐显钗 | E59: 100.4 | F59: 103.9 | G59: 204.3 | H59: 1000 | I59: 81720
A60: 56 | B60: 赤坭镇 | C60: 横沙村 | D60: 广州市杰涛农业发展有限公司 | E60: 103.8 | F60: 102.8 | G60: 206.6 | H60: 1000 | I60: 82640
A61: 57 | B61: 赤坭镇 | C61: 横沙村 | D61: 周国贤 | E61: 112.1 | G61: 112.1 | I61: 44840
A62: 58 | B62: 赤坭镇 | C62: 荷溪村 | D62: 利满海 | E62: 78.3 | G62: 78.3 | H62: 1000 | I62: 31320
A63: 59 | B63: 赤坭镇 | C63: 丰群村 | D63: 徐文源 | E63: 39.4 | G63: 39.4 | H63: 1000 | I63: 15760
A64: 60 | B64: 赤坭镇 | C64: 珊瑚村 | D64: 朱志坚 | F64: 37.2 | G64: 37.2 | H64: 1000 | I64: 14880
A65: 61 | B65: 赤坭镇 | C65: 西边村 | D65: 广东景丰都市农业科技有限公司 | F65: 44.9 | G65: 44.9 | H65: 1000 | I65: 17960
A66: 62 | B66: 赤坭镇 | C66: 鲤塘村 | D66: 叶永棋 | F66: 26.78 | G66: 26.78 | H66: 1000 | I66: 10712
A67: 63 | B67: 狮岭镇 | C67: 马岭村 | D67: 童暐智 | E67: 32.5 | F67: 32.5 | G67: 65 | H67: 1000 | I67: 26000
A68: 64 | B68: 狮岭镇 | C68: 义山村 | D68: 严敏 | E68: 75 | F68: 75.2 | G68: 150.2 | H68: 1000 | I68: 60080
A69: 65 | B69: 狮岭镇 | C69: 义山村 | D69: 钟海华 | F69: 38 | G69: 38 | I69: 15200
A70: 66 | B70: 狮岭镇 | C70: 新扬村 | D70: 李明仲 | F70: 16.4 | G70: 16.4 | H70: 1000 | I70: 6560
A71: 67 | B71: 狮岭镇 | C71: 新扬村 | D71: 广州市花都区狮岭美庭大苗圃 | F71: 18.6 | G71: 18.6 | I71: 7440
A72: 68 | B72: 花城街 | C72: 长岗村 | D72: 彭志超 | E72: 65.9 | G72: 65.9 | H72: 1000 | I72: 26360
A73: 69 | B73: 花城街 | C73: 长岗村 | D73: 张石保 | E73: 35.6 | G73: 35.6 | I73: 14240
A74: 70 | B74: 新华街 | C74: 莲塘村 | D74: 刘广约 | F74: 33.6 | G74: 33.6 | H74: 1000 | I74: 13440
A75: 合 计： | E75: =SUM(E5:E74) -> 4844.4 | F75: =SUM(F5:F74) -> 2666.98 | G75: =SUM(G5:G74) -> 7511.38 | H75: =SUM(H5:H74) -> 46000 | I75: =SUM(I5:I74) -> 3004552
